Cogmind - Beta 13 @@@ ROGUE MODE // 2024.03.06 @ 17:41:26 Player: Minty Result: Destroyed by Autobeam Turret with Autobeam Performance ------------- Evolutions (0) 0 Regions Visited (2) 400 Robots Destroyed (18) 90 Value Destroyed (565) 565 Prototype IDs (10) 200 Alien Tech Used (0) 0 Bonus (0) 0 TOTAL SCORE: 1255 Bonus ------- None Cogmind --------- Core Integrity 0/250 Matter 214/300 Energy 197/200 System Corruption 0% Temperature Cool (6) Movement Rolling (110) Location -10/Subcaves Parts ------- > --- POWER (1) -------- Subdweller Power Source > --- PROPULSION (2) --- Subdweller Monowheel Subdweller Monowheel > --- UTILITY (2) ------ Heat Sink Small Storage Unit > --- WEAPON (2) ------- Subdweller Machine Gun Makeshift Shrapnel Gun > --- INVENTORY (8) ---- Improved Terrain Scanner Cobbler Unit Riot Gun Grenade Launcher Subdweller Shrapnel Launcher Peak State ------------ > --- POWER ------------ Light Ion Engine Subdweller Power Source > --- PROPULSION ------- Spiked Treads Subdweller Monowheel > --- UTILITY ---------- Heat Sink Small Storage Unit > --- WEAPON ----------- Powered Cannon > --- INVENTORY -------- Improved Terrain Scanner Cobbler Unit Riot Gun Subdweller Machine Gun Makeshift Shrapnel Gun Grenade Launcher Subdweller Shrapnel Launcher [Rating: 24] Favorites ----------- Power Light Ion Engine Engine Light Ion Engine Propulsion Wheel Treads Spiked Treads Leg Aluminum Leg Wheel Wheel Flight Unit Flight Unit Utility Heat Sink Device Heat Sink Storage Small Storage Unit Weapon Powered Cannon Energy Gun Riot Gun Energy Cannon Powered Cannon Ballistic Gun Assault Rifle Ballistic Cannon Light Cannon Launcher Grenade Launcher Build | -11 -10 -10 ------- Run | Yrd Mat Sub Slots Evolved . | . . . Power . | . . . Propulsion . | . . . Utility . | . . . Weapon . | . . . Parts Attached 39 | . 12 27 Power 5 | . . 5 Engine 5 | . . 5 Core . | . . . Reactor . | . . . Propulsion 9 | . 3 6 Treads 1 | . . 1 Leg 1 | . 1 . Wheel 5 | . . 5 Hover . | . . . Flight 2 | . 2 . Utility 3 | . 2 1 Device 2 | . 2 . Storage 1 | . . 1 Processor . | . . . Hackware . | . . . Protection . | . . . Artifact . | . . . Weapon 22 | . 7 15 Energy Gun 1 | . . 1 Energy Cannon 6 | . 2 4 Ballistic Gun 7 | . 2 5 Ballistic Cannon 5 | . 2 3 Launcher 3 | . 1 2 Special Weapon . | . . . Impact Weapon . | . . . Slashing Weapon . | . . . Piercing Weapon . | . . . Special Melee Weapon . | . . . Unidentified Prototypes . | . . . Parts Lost 4 | . . 4 Power 2 | . . 2 Propulsion 2 | . . 2 Utility . | . . . Weapon . | . . . Highest Loss Streak 1 | . . 1 To Critical Strikes . | . . . Average Slot Usage (%) 84 | . 89 83 Engine 15 | . 14 15 Treads 6 | . . 7 Leg 3 | . 17 . Wheel 12 | . . 15 Flight 3 | . 9 1 Device 13 | . 12 13 Storage 11 | . 9 11 Energy Cannon 11 | . 3 13 Ballistic Gun 3 | . 16 . Ballistic Cannon 1 | . 2 . Naked Turns . | . . . Heaviest Build 23 | 12 14 23 Greatest Support 30 | 20 20 30 Greatest Overweight (x) 3 | . 3 3 Average Overweight (x) . | . . . Largest Inventory Capacity 8 | . 8 8 Average Capacity 7 | . 7 7 Most Carried 8 | . 8 8 Average Carried 7 | . 6 7 Final Capacity 8 | 8 5 8 Final Carried 6 | 6 5 6 Class Distribution -------------------- 100% | Mutant Dominant Class ---------------- Mutant | -10/Materials Mutant | -10/Subcaves Resources | -11 -10 -10 ----------- Run | Yrd Mat Sub Matter Collected 776 | 200 82 494 Remotely . | . . . Salvage Created 718 | . 212 506 Parts 52 | . 12 40 Haulers Intercepted . | . . . Recyclers Shooed . | . . . Parts Field Recycled . | . . . Retrieved Matter . | . . . Parts Self-Destructed 11 | . . 11 Prevented . | . . . Kills | -11 -10 -10 ------- Run | Yrd Mat Sub Combat Hostiles Destroyed 16 | . 4 12 Guns 1 | . 1 . Cannons 12 | . 3 9 AOE 3 | . . 3 Classes Destroyed 8 | . 3 5 Worker 1 | . 1 . Tunneler 1 | . 1 . Swarmer 3 | . . 3 Grunt 4 | . 4 . Sentry 1 | . . 1 Artisan 2 | . . 2 Cobbler 1 | . . 1 Subdweller 8 | . . 8 Best Kill Streak 5 | . 5 3 Combat Bots Only 4 | . 4 3 Max Kills in Single Turn 1 | . 1 1 Gunslinging . | . . . Exploded 1 | . . 1 Melee . | . . . Uniques/NPCs Destroyed . | . . . Combat | -11 -10 -10 -------- Run | Yrd Mat Sub Hostile Shots Fired 116 | . 23 93 Missed 37 | . 9 28 Damage Taken 1031 | . 188 843 Core 250 | . 29 221 Absorbed by Shields . | . . . Core Remaining (%) 100 | 100 . . Volleys Fired 110 | . 28 82 Largest 2 | . 2 2 Hottest 140 | . 80 140 Shots Fired 148 | . 42 106 Gun 24 | . 14 10 Cannon 112 | . 22 90 Launcher 12 | . 6 6 Special . | . . . Kinetic 48 | . 20 28 Thermal 88 | . 16 72 Explosive 12 | . 6 6 Electromagnetic . | . . . Robot Hit Streak 10 | . 7 10 Robot Miss Streak 6 | . 2 6 Penetration Max . | . . . Secondary Targets . | . . . Shots Hit Robots 57 | . 21 36 Core Hits 29 | . 11 18 Critical Kills . | . . . Critical Parts Destroyed . | . . . Critical Strikes . | . . . Melee Attacks . | . . . Impact . | . . . Slashing . | . . . Piercing . | . . . Sneak Attacks . | . . . Combat Hostiles . | . . . Follow-up Attacks . | . . . Damage Inflicted 2042 | . 396 1646 Guns 219 | . 134 85 Cannons 1550 | . 216 1334 Explosions 269 | . 46 223 Melee . | . . . Ramming 4 | . . 4 Kinetic 258 | . 173 85 Thermal 1511 | . 177 1334 Explosive 269 | . 46 223 Electromagnetic . | . . . Impact . | . . . Slashing . | . . . Piercing . | . . . Highest Corruption . | . . . Average Corruption . | . . . Corruption Purged . | . . . Corruption Blocked . | . . . Overload Shots 8 | . . 8 Effects 1 | . . 1 Heat Surge 1 | . . 1 Overflow Damage 33 | . 8 25 Projectiles 25 | . . 25 Explosions 8 | . 8 . Melee . | . . . Knockbacks 1 | . 1 . Impact . | . . . Kinetic 1 | . 1 . Secondary . | . . . Self-Inflicted Damage . | . . . Shots . | . . . Rammed 2 | . . 2 Targets Rammed 2 | . . 2 Kicked . | . . . Crushed . | . . . Highest Temperature 224 | . 36 224 Average Temperature 32 | . 7 69 Received Heat Transfer 363 | . 108 255 Siege Activations . | . . . Robots Corrupted . | . . . Combat Hostiles . | . . . Parts Fried . | . . . Impact Corruptions . | . . . Robots Melted . | . . . Combat Hostiles . | . . . Parts Melted 2 | . . 2 Heat Transferred 851 | . 370 481 Parts Sabotaged . | . . . Parts Stolen . | . . . Parts Stripped . | . . . Power Chain Reactions . | . . . Alert | -11 -10 -10 ------- Run | Yrd Mat Sub Peak Influence 139 | . 139 . Initial . | . . . Average 64 | . 64 . Maximum Alert Level . | . . . Low Security (%) 100 | . 100 . Level 1 . | . . . Level 2 . | . . . Level 3 . | . . . Level 4 . | . . . Level 5 . | . . . High Security . | . . . Max Security . | . . . Squads Dispatched . | . . . Investigation . | . . . Extermination . | . . . Reinforcement . | . . . Assault . | . . . Garrison . | . . . Intercept . | . . . Searches Triggered . | . . . Construction Impeded . | . . . Haulers Reinforced . | . . . Active Scanning Responses . | . . . Cargo Convoy Interrupts . | . . . Stealth | -11 -10 -10 --------- Run | Yrd Mat Sub Distress Signals 2 | . 2 . Communications Jammed . | . . . Distress Signals . | . . . Times Spotted 44 | . 7 37 Peak Tracking Total 5 | . 4 5 Tactical Retreats 3 | . . 3 Traps | -11 -10 -10 ------- Run | Yrd Mat Sub Traps Triggered . | . . . Indirectly . | . . . Trap Hack Attempts . | . . . Triggered . | . . . Disarmed . | . . . Reprogrammed . | . . . Reused . | . . . Traps Extracted . | . . . Installed . | . . . Triggered . | . . . Machines | -11 -10 -10 ---------- Run | Yrd Mat Sub Machines Disabled 1 | . . 1 Max in Single Turn 1 | . . 1 Machines Repaired . | . . . Machines Dismantled . | . . . Machines Sabotaged . | . . . Overloaded Fab Kills . | . . . Hacking | -11 -10 -10 --------- Run | Yrd Mat Sub Machines Accessed 4 | . 2 2 Terminals 1 | . 1 . Fabricators . | . . . Repair Stations . | . . . Recycling Units 1 | . 1 . Scanalyzers . | . . . Garrison Access . | . . . Total Hacks 6 | . 4 2 Successful 4 | . 2 2 Failed 2 | . 2 . Catastrophic . | . . . Database Lockouts . | . . . Manual 2 | . 2 . Terminals 2 | . 2 . Fabricators . | . . . Repair Stations . | . . . Recycling Units 2 | . 2 . Scanalyzers . | . . . Garrison Access . | . . . Terminal Hacks 2 | . . 2 Record 1 | . . 1 Derelict Proto ID Bank 1 | . . 1 Fabricator Hacks . | . . . Repair Station Hacks . | . . . Recycling Unit Hacks 1 | . 1 . Report Inventory 1 | . 1 . Scanalyzer . | . . . Garrison Access Hacks . | . . . Unauthorized Hacks 1 | . 1 . Terminals 1 | . 1 . Botnet 1 | . 1 . Fabricators . | . . . Repair Stations . | . . . Recycling Units . | . . . Scanalyzers . | . . . Garrison Access . | . . . Data Cores Recovered . | . . . Used . | . . . Hacking Detections 2 | . 2 . Full Trace Events . | . . . Feedback Events . | . . . Feedback Blocked . | . . . Robot Schematics Acquired . | . . . Robots Built . | . . . Authchips . | . . . Time . | . . . Total Robot Build Rating . | . . . Part Schematics Acquired . | . . . Parts Built . | . . . Authchips . | . . . Time . | . . . Total Part Build Rating . | . . . Parts Repaired . | . . . Time . | . . . Parts Recycled . | . . . Recycled Matter . | . . . Retrieved Matter . | . . . Retrieved Components . | . . . Parts Scanalyzed . | . . . Part Schematics Acquired . | . . . Parts Damaged . | . . . Bothacking | -11 -10 -10 ------------ Run | Yrd Mat Sub Used RIF Installer . | . . . Robots Hacked . | . . . Non-combat . | . . . Combat . | . . . Robot Hacks Applied . | . . . Relay Couplers Released . | . . . Fabnet Peak Effective % . | . . . Robots Rewired . | . . . Allies Hacked . | . . . Hacks Repelled . | . . . Allies | -11 -10 -10 -------- Run | Yrd Mat Sub Total Allies . | . . . Largest Group . | . . . Highest-Rated Group . | . . . Highest-Rated Ally . | . . . Total Orders . | . . . Ally Attacks . | . . . Total Damage . | . . . Kills . | . . . Allies Corrupted . | . . . Allies Melted . | . . . Intel | -11 -10 -10 ------- Run | Yrd Mat Sub Robot Analysis Total . | . . . Derelict Logs Recovered 1 | . . 1 Drone Launches . | . . . Drone Recoveries . | . . . Exploration | -11 -10 -10 ------------- Run | Yrd Mat Sub Turns Passed 1444 | . 251 1193 Spaces Moved 1058 | 1 176 881 Core . | . . . Treads 108 | . . 108 Legs 103 | 1 102 . Wheels 718 | . . 718 Hover . | . . . Flight 129 | . 74 55 Fastest Speed 37 | 120 37 37 Average Speed 100 | 120 88 103 Slowest Speed 280 | 120 280 280 Overloaded Moves . | . . . Propulsion Burnouts . | . . . Robots Hopped 2 | . 2 . Cave-ins Triggered . | . . . Exploration Rate (%) 29 | 2 32 54 Regions Visited 2 Branch Regions 1 Pre-discovered Areas . | . . . Known Exits Taken . | . . . Unknown Exits Taken 2 | 1 1 . Scrap Searched 1 | . . 1 Spaces Dug . | . . . Terrain Destroyed 53 | . 19 34 Melee . | . . . Projectile 18 | . . 18 AOE 35 | . 19 16 Terrain Rammed . | . . . Walls Destroyed . | . . . Machines Disabled . | . . . Actions | -11 -10 -10 --------- Run | Yrd Mat Sub Total 1293 | . 226 1067 Wait 54 | . . 54 Move 1053 | . 172 881 Hop 1 | . 1 . Pick Up 6 | . 1 5 Fast Attach 17 | . 7 10 Attach 5 | . . 5 Detach 6 | . 2 4 Swap 17 | . 5 12 Drop 22 | . 10 12 Fire 110 | . 28 82 Melee . | . . . Ram . | . . . Kick . | . . . Crush 2 | . . 2 Escape Stasis . | . . . Rewire . | . . . Trap . | . . . Miscellaneous . | . . . Route ------- -11/Scrapyard -10/Materials -10/Subcaves (discovered 1 exit: [*Rec]) History --------- Turn | Location | Event 1 | -11/Scrapyard | Discovered new exit (range 0) 1 | -11/Scrapyard | Entered Materials 246 | -10/Materials | Discovered new exit (range 11) 252 | -10/Materials | Entered Subcaves 349 | -10/Subcaves | Build established: Mutant 507 | -10/Subcaves | Visited 4L-MR0's lab 535 | -10/Subcaves | Found Powered Cannon 537 | -10/Subcaves | Attached Powered Cannon, gained temporary slot: Power 960 | -10/Subcaves | Learned Materials emergency access door positions 989 | -10/Subcaves | Visited Clippyterm 1188 | -10/Subcaves | Core integrity fell below 50% 1418 | -10/Subcaves | Core integrity fell below 20% 1435 | -10/Subcaves | Discovered new exit (range 15) 1445 | -10/Subcaves | Destroyed by Autobeam Turret with Autobeam Last Messages --------------- 01206_ Dropped Wheel. 01207_ Acquired 25 matter. 01315_ 1Z-V2P(R): "LEAVESUB!" 01325_ Lgt. Ion Engine destroyed. 01326_ Temporary Power slot lost. 01333_ Slammed into 1Z-V2P(R). 01338_ Sub. Monowheel melted. 01338_ 1Z-V2P(R) destroyed. 01345_ Dropped Sub. Power Source. 01408_ S-10 Pest destroyed. 01408_ Spk. Treads destroyed. 01409_ S-10 Pest destroyed. 01415_ Flight Unit fries itself beyond repair. 01416_ Lgt. Ion Engine fries itself beyond repair. 01420_ Discarded Powered Cannon. 01422_ S-10 Pest destroyed. 01427_ Lgt. Assault Rifle fries itself beyond repair. 01432_ Flight Unit fries itself beyond repair. 01435_ EXIT=FOUND 01437_ Acquired Sub. Monowheel. Map ----- +----------------------------------------------------+ | ?????????????????????????????????????????????????? | | ?????????????????????????????????????????????????? | | ?????????????????????????????????????????????????? | | ?????????????????????????????????????????????????? | | ?????????????????????????????????????????????????? | | ?????????????????????????????????????????????????? | | ?????????????????????????????????????????????????? | | ?????????????????????????????????????????????????? | | ?????????????????????????????????????????????????? | | ?????????????????????????????????????????????????? | | ?????????????????????????????????????????????????? | | ??????????????????????#??????????????????????????? | | ?????????????????????#